fUST/lending_fUST_20251216
["ID","MTS","AMOUNT","RATE_DAILY","PERIOD"]
[398607652,1765863145137,3897.7846248,9.85e-05,2]
[398607653,1765863145160,1102.2153752,9.85e-05,2]
[398607654,1765863168651,5000.0,9.85e-05,2]
[398607655,1765863192121,3897.7946248,9.85e-05,2]
[398607656,1765863192144,1102.2053752,9.85e-05,2]
[398607657,1765863194997,293.2,8.166e-05,2]
[398607658,1765863195406,586.39,8.908e-05,2]
[398607659,1765863196223,879.59,9.65e-05,2]
[398607660,1765863211431,7138.6246248,9.752e-05,2]
[398607661,1765863211455,10000.01,9.752e-05,2]
[398607662,1765863211479,10000.01,9.752e-05,2]
[398607663,1765863211502,10000.01,9.752e-05,2]
[398607664,1765863211526,10000.01,9.752e-05,2]
[398607665,1765863211551,10000.01,9.752e-05,2]
[398607666,1765863211575,10000.01,9.752e-05,2]
[398607667,1765863211598,10000.01,9.752e-05,2]
[398607668,1765863211621,10000.01,9.752e-05,2]
[398607669,1765863220330,-3476.9594422,9.654e-05,2]
[398607670,1765863220812,-3046.0911156,9.654e-05,2]
[398607671,1765863240259,-6493.9168137,9.654e-05,2]
[398607672,1765863240373,-10000.01,9.654e-05,2]
[398607673,1765863240491,-1983.0226285,9.654e-05,2]
[398607674,1765863240526,-6033.964743,9.752e-05,2]
[398607675,1765863240592,-10000.01,9.752e-05,2]
[398607676,1765863240696,-10000.01,9.752e-05,2]
[398607677,1765863240800,-10000.01,9.752e-05,2]
[398607678,1765863240933,-10000.01,9.752e-05,2]
[398607679,1765863241058,-10000.01,9.752e-05,2]
[398607680,1765863241299,-10000.01,9.752e-05,2]
[398607681,1765863249898,-300.0,9.653e-05,2]
[398607682,1765863249935,-9400.01,9.752e-05,2]
[398607683,1765863261928,5000.0,9.654e-05,2]
[398607684,1765863263683,-171.89959443,9.752e-05,2]
[398607685,1765863265689,-189.3361304,9.752e-05,2]
[398607686,1765863267853,-179.16449368,9.752e-05,2]
[398607687,1765863269884,-344.93240262,9.752e-05,2]
[398607688,1765863274726,286.2,8.162e-05,2]
[398607689,1765863275131,572.4,8.903e-05,2]
[398607690,1765863275542,858.6,9.645e-05,2]
[398607691,1765863276132,-226.61311778,9.751e-05,2]
[398607692,1765863276154,-20.86688222,9.751e-05,2]
[398607693,1765863280353,-166.39,9.751e-05,2]
[398607694,1765863283663,-114.2413021,9.751e-05,2]
[398607695,1765863283685,-163.66884929,9.751e-05,2]
[398607696,1765863285542,3282.81,9.742e-05,2]
[398607697,1765863285564,1267.21,9.742e-05,2]
[398607698,1765863297309,-166.39,9.751e-05,2]
[398607699,1765863301949,-169.94115071,9.751e-05,2]
[398607700,1765863301972,-231.52300484,9.751e-05,2]
[398607701,1765863310563,-289.91642082,9.75e-05,2]
[398607702,1765863312167,-10.08357918,9.75e-05,2]
[398607703,1765863312188,-156.30642082,9.75e-05,2]
[398607862,1765863354001,286.97,8.168e-05,2]
[398607882,1765863354445,573.93,8.911e-05,2]
[398607902,1765863354886,860.9,9.653e-05,2]
[398607957,1765863390824,286.36251834,9.988e-05,4]
[398607959,1765863415696,6341.4521404,9.013e-05,2]
[398607960,1765863434423,284.38,8.174e-05,2]
[398607961,1765863434849,385.1678596,8.917e-05,2]
[398607962,1765863434879,183.5921404,8.917e-05,2]
[398607963,1765863435243,853.14,9.66e-05,2]
[398607969,1765863513127,309.38,8.174e-05,2]
[398607970,1765863513526,618.77,8.917e-05,2]
[398607971,1765863513989,928.15,9.66e-05,2]
[398607974,1765863541317,-1043.69357918,9.75e-05,2]
[398607975,1765863541343,-299.0,9.75e-05,2]
[398607976,1765863541380,-300.0,9.75e-05,2]
[398607977,1765863541408,-1200.0,9.75e-05,2]
[398607978,1765863542906,300.0,9.75e-05,2]
[398607979,1765863556493,4014.62284164,9.75e-05,2]
[398607980,1765863556516,985.37715836,9.75e-05,2]
[398607982,1765863579409,5000.0,9.75e-05,2]
[398607983,1765863602290,300.0,9.75e-05,2]
[398607984,1765863602321,3714.63284164,9.75e-05,2]
[398607985,1765863602345,1285.36715836,9.75e-05,2]
[398607986,1765863603521,291.49,8.249e-05,2]
[398607987,1765863603933,582.97,8.999e-05,2]
[398607988,1765863604347,874.46,9.749e-05,2]
[398607989,1765863610270,642.0,9.75e-05,2]
[398607990,1765863626016,5000.0,9.75e-05,2]
[398607991,1765863631583,245.09850959,9.746e-05,2]
[398607992,1765863649220,1078.62433205,9.75e-05,2]
[398607993,1765863649246,3921.37566795,9.75e-05,2]
[398607994,1765863662551,300.0,9.75e-05,2]
[398607995,1765863672183,5000.0,9.75e-05,2]
[398607996,1765863677231,190.054969,9.085e-05,2]
[398607997,1765863682858,274.95,8.265e-05,2]
[398607998,1765863683289,313.62936305,9.016e-05,2]
[398607999,1765863683318,236.28063695,9.016e-05,2]
[398608000,1765863695769,5000.0,9.75e-05,2]
[398608001,1765863719580,4763.72936305,9.75e-05,2]
[398608003,1765863762187,264.46,8.26e-05,2]
[398608004,1765863762593,528.91,9.011e-05,2]
[398608006,1765863776789,-236.27063695,9.75e-05,2]
[398608007,1765863776824,-300.0,9.75e-05,2]
[398608008,1765863782623,300.0,9.75e-05,2]
[398608009,1765863783143,1167.0,9.75e-05,2]
[398608010,1765863788646,5000.0,9.75e-05,2]
[398608011,1765863791480,382.19181271,9.485e-05,2]
[398608012,1765863794268,436.35385245,9.485e-05,2]
[398608013,1765863803109,-4741.63871585,9.751e-05,2]
[398608014,1765863803208,-10000.01,9.751e-05,2]
[398608015,1765863812072,-2481.21977445,9.653e-05,2]
[398608016,1765863835413,5000.0,9.741e-05,2]
[398608017,1765863842574,37.5704511,8.249e-05,2]
[398608018,1765863842599,217.1495489,8.249e-05,2]
[398608019,1765863843003,509.44,8.998e-05,2]
[398608020,1765863859145,5000.0,9.741e-05,2]
[398608021,1765863875410,4273.4204511,9.741e-05,2]
[398608022,1765863875434,726.5795489,9.741e-05,2]
[398608023,1765863883234,5000.0,9.741e-05,2]
[398608024,1765863898997,4273.4304511,9.741e-05,2]
[398608025,1765863899020,726.5695489,9.741e-05,2]
[398608029,1765863907103,5000.0,9.741e-05,2]
[398608037,1765863922619,244.99,8.17e-05,2]
[398608038,1765863923019,489.98,8.912e-05,2]
[398608039,1765863923413,3538.4704511,9.741e-05,2]
[398608040,1765863923457,734.98,9.655e-05,2]
[398608041,1765863929338,-160.5538696,9.741e-05,2]
[398608043,1765863931255,5000.0,9.739e-05,2]
[398608044,1765863932875,-188.22567193,9.741e-05,2]
[398608045,1765863935039,-178.07719388,9.741e-05,2]
[398608046,1765863937018,-254.9395565,9.741e-05,2]
[398608047,1765863941420,-166.39,9.741e-05,2]
[398608048,1765863942929,-172.56561754,9.741e-05,2]
[398608049,1765863943351,150.02415084,9.452e-05,2]
[398608050,1765863946165,600.09660337,9.452e-05,2]
[398608051,1765863954780,4249.88924579,9.739e-05,2]
[398608052,1765863954804,750.11075421,9.739e-05,2]
[398608053,1765863955675,552.82847656,9.485e-05,2]
[398608054,1765863958858,995.09125781,9.485e-05,2]
[398608055,1765863962710,1767.28207388,9.485e-05,2]
[398608057,1765863978228,5000.0,9.739e-05,2]
[398608058,1765863982463,934.69743754,9.452e-05,2]
[398608059,1765863982487,415.51992003,9.452e-05,2]
[398608060,1765863985102,2400.38641346,9.452e-05,2]
[398608061,1765864001018,5000.0,9.739e-05,2]
[398608062,1765864001904,226.28,8.165e-05,2]
[398608063,1765864002352,452.57,8.908e-05,2]
[398608064,1765864002708,678.85,9.65e-05,2]
[398608065,1765864017149,826.40366651,8.821e-05,2]
[398608066,1765864017171,10000.01,8.821e-05,2]
[398608067,1765864017194,1114.41098199,8.821e-05,2]
[398608068,1765864023715,5000.0,9.731e-05,2]
[398608069,1765864038080,-340.77763945,9.741e-05,2]
[398608070,1765864038102,-352.48084077,9.749e-05,2]
[398608071,1765864038123,-300.0,9.75e-05,2]
[398608072,1765864038142,-812.45693978,9.75e-05,2]
[398608073,1765864038163,-2481.21977445,9.751e-05,2]
[398608074,1765864038183,-216.25530867,9.751e-05,2]
[398608075,1765864038202,-501.09537265,9.751e-05,2]
[398608076,1765864038223,-500.0,9.751e-05,2]
[398608077,1765864038243,-361.23572483,9.751e-05,2]
[398608078,1765864038265,-333.86987872,9.751e-05,2]
[398608079,1765864038298,-166.13012128,9.751e-05,2]
[398608080,1765864038321,-591.62929564,9.751e-05,2]
[398608081,1765864038342,-500.0,9.751e-05,2]
[398608082,1765864038365,-500.0,9.751e-05,2]
[398608083,1765864038385,-500.0,9.751e-05,2]
[398608084,1765864038407,-500.0,9.751e-05,2]
[398608085,1765864038427,-500.0,9.751e-05,2]
[398608086,1765864038447,-500.0,9.751e-05,2]
[398608087,1765864038469,-500.0,9.751e-05,2]
[398608088,1765864038490,-500.0,9.751e-05,2]
[398608089,1765864038510,-500.0,9.751e-05,2]
[398608090,1765864038530,-250.0,9.751e-05,2]
[398608091,1765864038552,-308.3859968,9.751e-05,2]
[398608092,1765864038572,-557.0,9.751e-05,2]
[398608093,1765864038596,-137683.53470258,9.752e-05,2]
[398608094,1765864046318,3885.59901801,9.731e-05,2]
[398608095,1765864046343,1114.40098199,9.731e-05,2]
[398608096,1765864062285,5000.0,9.731e-05,2]
[398608097,1765864070111,5000.0,9.742e-05,2]
[398608098,1765864081895,0.01,8.211e-05,2]
[398608099,1765864081924,208.99,8.211e-05,2]
[398608100,1765864082336,418.01,8.958e-05,2]
[398608101,1765864083686,627.01,9.704e-05,2]
[398608102,1765864085952,5000.0,9.742e-05,2]
[398608103,1765864094063,3746.0,9.742e-05,2]
[398608104,1765864094087,1254.0,9.742e-05,2]
[398608105,1765864096100,296.94398131,9.593e-05,2]
[398608107,1765864111029,5000.0,9.742e-05,2]
[398608108,1765864116341,184.8834879,9.33e-05,2]
[398608109,1765864119320,3264.18253079,9.742e-05,2]
[398608110,1765864119344,1735.81746921,9.742e-05,2]
[398608111,1765864135071,5000.0,9.742e-05,2]
[398608112,1765864143140,3264.19253079,9.742e-05,2]
[398608113,1765864151109,-1735.80746921,9.742e-05,2]
[398608114,1765864151130,-300.0,9.751e-05,2]
[398608115,1765864151154,-152034.28590099,9.752e-05,2]
[398608116,1765864156623,150.0,0.00019,120]
[398608117,1765864160106,-730.58480104,9.654e-05,2]
[398608118,1765864160130,-6365.26392187,9.752e-05,2]
[398608119,1765864162102,-9030.90986994,9.752e-05,2]
[398608120,1765864163078,212.13,8.214e-05,2]
[398608121,1765864163474,424.27,8.961e-05,2]
[398608122,1765864164078,636.4,9.707e-05,2]
[398608123,1765864166116,-33748.9289081,9.752e-05,2]
[398608124,1765864167354,5000.0,9.732e-05,2]
[398608125,1765864169080,-637.98,9.752e-05,2]
[398608126,1765864170037,150.0,0.000181,99]
[398608127,1765864183300,150.0,0.000165,59]
[398608128,1765864191240,3727.21,9.732e-05,2]
[398608134,1765864232165,-464.51114004,9.732e-05,2]
[398608135,1765864232225,-559.81261142,9.732e-05,2]
[398608137,1765864233077,10000.01,9.652e-05,2]
[398608221,1765864240630,-3e-08,9.652e-05,2]
[398608291,1765864241641,195.94,8.16e-05,2]
[398608468,1765864243377,-391.87,8.901e-05,2]
[398608472,1765864243411,-587.81,9.643e-05,2]
[398608799,1765864246947,-16006.2977907,9.652e-05,2]
[398609382,1765864254245,-1202.65644994,9.593e-05,2]
[398609723,1765864264196,-300.0,9.651e-05,2]
[398609724,1765864264223,-241.29234485,9.652e-05,2]
[398609725,1765864268605,-153.28504691,9.652e-05,2]
[398609726,1765864270637,-438.91542531,9.652e-05,2]
[398609727,1765864272305,-166.39,9.652e-05,2]
[398609728,1765864276419,-188.00162203,9.652e-05,2]
[398609729,1765864277853,-400.46146541,9.652e-05,2]
[398609730,1765864285962,-311.94617457,9.652e-05,2]
[398609731,1765864292379,-371.48396755,9.652e-05,2]
[398609732,1765864294358,-283.97844042,9.652e-05,2]
[398609733,1765864296449,-164.04125098,9.652e-05,2]
[398609734,1765864301273,-219.06,9.652e-05,2]
[398609735,1765864303230,-226.6706763,9.652e-05,2]
[398609737,1765864325683,184.39,8.179e-05,2]
[398609738,1765864326100,368.78,8.922e-05,2]
[398609739,1765864357263,7041.52710012,9.157e-05,2]
[398609740,1765864357286,7492.81741818,9.157e-05,2]
[398609741,1765864388110,-297.72352532,9.65e-05,2]
[398609742,1765864389739,690.6127524,9.066e-05,2]
[398609743,1765864390371,-2.27647468,9.65e-05,2]
[398609744,1765864390393,-351.0,9.65e-05,2]
[398609745,1765864404986,-300.8264848,9.65e-05,2]
[398609746,1765864410762,209.04,8.456e-05,2]
[398609747,1765864411153,418.08,9.225e-05,2]
[398609748,1765864411872,-259.63966513,9.65e-05,2]
[398609749,1765864415741,-161.19502046,9.65e-05,2]
[398609750,1765864427237,-209.87063011,9.65e-05,2]
[398609751,1765864430887,-300.0,9.65e-05,2]
[398609752,1765864436540,-230.32081396,9.65e-05,2]
[398609753,1765864439471,-158.60490921,9.65e-05,2]
[398609754,1765864443956,-252.334,9.65e-05,2]
[398609755,1765864478107,-258.8813432,9.65e-05,2]
[398609756,1765864490383,201.06,8.166e-05,2]
[398609757,1765864490799,402.11,8.908e-05,2]
[398609758,1765864507489,-300.0,9.649e-05,2]
[398609759,1765864507518,-196.0,9.649e-05,2]
[398609760,1765864507548,-241.1186568,9.65e-05,2]
[398609761,1765864507580,-500.0,9.65e-05,2]
[398609762,1765864507612,-500.0,9.65e-05,2]
[398609763,1765864507641,-649.99706399,9.65e-05,2]
[398609764,1765864507675,-500.0,9.65e-05,2]
[398609765,1765864507706,-500.0,9.65e-05,2]
[398609766,1765864507737,-500.0,9.65e-05,2]
[398609767,1765864507767,-500.0,9.65e-05,2]
[398609768,1765864507798,-500.0,9.65e-05,2]
[398609769,1765864508189,-500.0,9.65e-05,2]
[398609770,1765864508220,-500.0,9.65e-05,2]
[398609771,1765864508251,-500.0,9.65e-05,2]
[398609772,1765864508282,-500.0,9.65e-05,2]
[398609773,1765864508313,-500.0,9.65e-05,2]
[398609774,1765864508344,-500.0,9.65e-05,2]
[398609775,1765864508376,-341.1464048,9.65e-05,2]
[398609776,1765864508406,-281.55905917,9.65e-05,2]
[398609777,1765864508439,-500.0,9.65e-05,2]
[398609778,1765864508473,-500.0,9.65e-05,2]
[398609779,1765864508506,-254.59907206,9.65e-05,2]
[398609780,1765864508574,-245.40092794,9.65e-05,2]
[398609781,1765864508605,-500.0,9.65e-05,2]
[398609782,1765864508636,-500.0,9.65e-05,2]
[398609783,1765864508668,-591.04427716,9.65e-05,2]
[398609784,1765864508699,-550.26060768,9.65e-05,2]
[398609785,1765864508730,-499.99999999,9.65e-05,2]
[398609786,1765864510540,1200.0,9.649e-05,2]
[398609787,1765864570297,193.38,8.167e-05,2]
[398609788,1765864570694,386.76,8.909e-05,2]
[398609789,1765864581118,875.46288958,3.2e-05,120]
[398609790,1765864596382,5000.0,9.65e-05,2]
[398609791,1765864619377,4419.87,9.65e-05,2]
[398609792,1765864619403,580.13,9.65e-05,2]
[398609793,1765864632087,-375.71147381,9.65e-05,2]
[398609794,1765864643445,5000.0,9.65e-05,2]
[398609795,1765864649111,194.08,8.233e-05,2]
[398609796,1765864649504,388.16,8.981e-05,2]
[398609799,1765864666893,3666.34705238,9.65e-05,2]
[398609800,1765864666919,1333.65294762,9.65e-05,2]
[398609801,1765864671018,-440.89576349,9.651e-05,2]
[398609802,1765864671050,-309.06211769,9.651e-05,2]
[398609803,1765864671084,-593.46071164,9.651e-05,2]
[398609804,1765864671116,-343.44936413,9.651e-05,2]
[398609805,1765864691512,-300.0,9.651e-05,2]
[398609806,1765864691579,5000.0,9.651e-05,2]
[398609807,1765864695468,310.07450516,9.559e-05,2]
[398609808,1765864697884,642.81784601,9.559e-05,2]
[398609809,1765864700204,1157.07212282,9.559e-05,2]
[398609810,1765864702521,2057.01710724,9.559e-05,2]
[398609811,1765864720235,-5000.0,9.651e-05,2]
[398609812,1765864720673,-9839.66234956,9.652e-05,2]
[398609813,1765864720768,-10000.01,9.652e-05,2]
[398609814,1765864720899,-10000.01,9.652e-05,2]
[398609815,1765864728685,195.09,8.235e-05,2]
[398609816,1765864733099,-363.29505508,8.984e-05,2]
[398609818,1765864740604,-26.89494492,8.984e-05,2]
[398609819,1765864760695,5000.0,9.642e-05,2]
[398609820,1765864784099,4946.22011016,9.642e-05,2]
[398609821,1765864784124,53.77988984,9.642e-05,2]
[398609822,1765864807507,5000.0,9.642e-05,2]
[398609823,1765864807993,210.08,8.305e-05,2]
[398609824,1765864808403,420.16,9.06e-05,2]
[398609826,1765864831030,4315.99011016,9.642e-05,2]
[398609827,1765864839238,-388.42013531,9.642e-05,2]
[398609828,1765864845309,-261.35192524,9.642e-05,2]
[398609829,1765864857242,290.9853674,9.559e-05,2]
[398609830,1765864859721,523.77366132,9.559e-05,2]
[398609831,1765864862245,931.15317569,9.559e-05,2]
[398609832,1765864865438,305.25482081,9.559e-05,2]
[398609833,1765864868265,549.45867747,9.559e-05,2]
[398609834,1765864870903,976.81542661,9.559e-05,2]
[398609836,1765864887532,202.06,8.183e-05,2]
[398609837,1765864887986,404.12,8.927e-05,2]
[398609838,1765864968560,196.25,7.281e-05,2]
[398609839,1765864968965,392.51,7.943e-05,2]
[398609840,1765864969397,588.76,8.605e-05,2]
[398609841,1765864969807,785.01,9.267e-05,2]
[398609842,1765864977957,-34.23782929,9.642e-05,2]
[398609843,1765864987968,5000.0,9.642e-05,2]
[398609844,1765864997360,-300.0,9.649e-05,2]
[398609845,1765865011537,5000.0,9.649e-05,2]
[398609846,1765865027010,-1000.0,9.65e-05,2]
[398609847,1765865027237,-662.59259356,9.65e-05,2]
[398609848,1765865027270,-574.12855637,9.65e-05,2]
[398609849,1765865027300,-500.0,9.65e-05,2]
[398609850,1765865027330,-500.0,9.65e-05,2]
[398609851,1765865027362,-500.0,9.65e-05,2]
[398609852,1765865027398,-500.0,9.65e-05,2]
[398609853,1765865027428,-500.0,9.65e-05,2]
[398609854,1765865027461,-26.56770014,9.65e-05,2]
[398609855,1765865027564,-473.43229986,9.65e-05,2]
[398609856,1765865027594,-2002.0,9.65e-05,2]
[398609857,1765865027624,-500.0,9.65e-05,2]
[398609858,1765865027652,-186.70436437,9.65e-05,2]
[398609859,1765865027681,-500.0,9.65e-05,2]
[398609860,1765865027710,-650.30586892,9.65e-05,2]
[398609861,1765865027762,-2773.56790519,9.65e-05,2]
[398609862,1765865035377,4452.87418962,9.65e-05,2]
[398609863,1765865035406,547.12581038,9.65e-05,2]
[398609864,1765865058390,5000.0,9.65e-05,2]
[398609865,1765865058890,185.05,7.262e-05,2]
[398609866,1765865059289,370.09,7.923e-05,2]
[398609867,1765865059797,555.14,8.583e-05,2]
[398609868,1765865060227,740.19,9.243e-05,2]
[398609869,1765865064233,643.217572,8.741e-05,2]
[398609870,1765865081830,1959.19661762,9.65e-05,2]
[398609871,1765865081854,3040.80338238,9.65e-05,2]
[398609873,1765865105591,5000.0,9.65e-05,2]
[398609876,1765865117132,1959.20661762,9.646e-05,2]
[398609877,1765865117158,814.36128757,9.646e-05,2]
[398609878,1765865128484,5000.0,9.65e-05,2]
[398609879,1765865132533,553.64373807,9.646e-05,2]
[398609880,1765865138030,184.02,8.15e-05,2]
[398609881,1765865138436,368.03,8.891e-05,2]
[398609882,1765865139312,552.05,9.632e-05,2]
[398609883,1765865149090,-300.0,9.65e-05,2]
[398609884,1765865149111,-300.0,9.65e-05,2]
[398609885,1765865149132,-19.87828607,9.65e-05,2]
[398609886,1765865151329,2527.90497436,9.65e-05,2]
[398609887,1765865155173,481.4302542,9.489e-05,2]
[398609888,1765865157494,1923.79529576,9.489e-05,2]
[398609889,1765865159917,170.50654836,9.445e-05,2]
[398609890,1765865162148,682.02619344,9.445e-05,2]
[398609891,1765865164803,1534.55893525,9.445e-05,2]
[398609892,1765865167582,2728.10477377,9.445e-05,2]
[398609894,1765865191080,-300.0,9.649e-05,2]
[398609895,1765865191103,-183.68091532,9.65e-05,2]
[398609896,1765865218036,169.96,8.156e-05,2]
[398609897,1765865218459,339.93,8.898e-05,2]
[398609898,1765865218852,509.89,9.639e-05,2]
[398609899,1765865228338,1459.80799922,9.552e-05,2]
[398609900,1765865228365,10000.01,9.552e-05,2]
[398609901,1765865228392,10000.01,9.552e-05,2]
[398609902,1765865228421,10000.01,9.552e-05,2]
[398609903,1765865228449,10000.01,9.552e-05,2]
[398609904,1765865235080,-141492.942891,9.552e-05,2]
[398609905,1765865237307,-156.27,9.552e-05,2]
[398609907,1765865244679,-266.59628977,9.552e-05,2]
[398609912,1765865247249,-223.75617013,9.552e-05,2]
[398609913,1765865248712,-354.57454608,9.552e-05,2]
[398609914,1765865250122,-165.87385475,9.552e-05,2]
[398609915,1765865252862,-262.70228829,9.552e-05,2]
[398609916,1765865254838,-152.57,9.552e-05,2]
[398609917,1765865256929,-326.35815993,9.552e-05,2]
[398609918,1765865259112,5000.0,9.456e-05,2]
[398609919,1765865261852,-193.21080085,9.552e-05,2]
[398609920,1765865288788,-155.53,9.551e-05,2]
[398609921,1765865292568,-144.47,9.551e-05,2]
[398609922,1765865292600,-78.47695127,9.552e-05,2]
[398609923,1765865294129,-190.22159135,9.552e-05,2]
[398609924,1765865300089,-202.57256598,9.552e-05,2]
[398609925,1765865301486,-189.34,9.552e-05,2]
[398609926,1765865304739,-404.53657018,9.552e-05,2]
[398609927,1765865309392,-269.8135386,9.552e-05,2]
[398609928,1765865311516,182.12,7.392e-05,2]
[398609929,1765865311945,364.25,8.064e-05,2]
[398609930,1765865312008,-194.54440349,9.552e-05,2]
[398609931,1765865312358,546.37,8.736e-05,2]
[398609932,1765865312787,728.5,9.408e-05,2]
[398609933,1765865316157,-239.72608566,9.552e-05,2]
[398609934,1765865318106,-196.66406024,9.552e-05,2]
[398609935,1765865319860,-545.27184007,9.552e-05,2]
[398609936,1765865324144,-154.31,9.552e-05,2]
[398609937,1765865325622,-4514.16324811,9.552e-05,2]
[398609938,1765865325650,-164.31400498,9.552e-05,2]
[398609939,1765865325702,-10000.01,9.552e-05,2]
[398609940,1765865325832,-10000.01,9.552e-05,2]
[398609941,1765865327091,-166.96293442,9.552e-05,2]
[398609942,1765865331933,-454.17545872,9.552e-05,2]
[398609943,1765865335704,-166.08643853,9.456e-05,2]
[398609944,1765865339938,-193.54,9.456e-05,2]
[398609945,1765865341926,-193.54,9.456e-05,2]
[398609946,1765865343390,-300.0,9.455e-05,2]
[398609947,1765865343415,-119.28,9.456e-05,2]
[398609948,1765865347255,-72346.61938,9.456e-05,2]
[398609949,1765865348351,-10000.01,9.456e-05,2]
[398609950,1765865348552,-10000.01,9.456e-05,2]
[398609951,1765865349180,-530.56798408,9.456e-05,2]
[398609952,1765865351214,-269.13914629,9.456e-05,2]
[398609953,1765865351269,-65465.25266832,9.456e-05,2]
[398609954,1765865351288,-500.0,9.551e-05,2]
[398609955,1765865351308,-500.0,9.551e-05,2]
[398609956,1765865351329,-500.0,9.551e-05,2]
[398609957,1765865351349,-500.0,9.551e-05,2]
[398609958,1765865351370,-525.14313445,9.551e-05,2]
[398609959,1765865351391,-442.68647066,9.551e-05,2]
[398609960,1765865351414,-132103.45787153,9.552e-05,2]
[398609961,1765865356098,-10784.0668628,9.552e-05,2]
[398609962,1765865363255,-293.80326162,9.456e-05,2]
[398609963,1765865364132,-24916.27210662,9.456e-05,2]
[398609964,1765865364158,-242.79673878,9.552e-05,2]
[398609965,1765865367113,-16153.72414411,9.552e-05,2]
[398609966,1765865367132,-1200.0,9.65e-05,2]
[398609967,1765865367150,-300.0,9.65e-05,2]
[398609968,1765865367168,-252.334,9.65e-05,2]
[398609969,1765865367193,-368.19724433,9.65e-05,2]
[398609970,1765865367214,-500.0,9.651e-05,2]
[398609971,1765865367234,-321.49765174,9.651e-05,2]
[398609972,1765865367253,-17254.46359971,9.651e-05,2]
[398609973,1765865367272,-555.0,9.652e-05,2]
[398609974,1765865367289,-151.0,9.652e-05,2]
[398609975,1765865367307,-151.0,9.652e-05,2]
[398609976,1765865367326,-226.68261486,9.652e-05,2]
[398609977,1765865367345,-1419.128112,9.652e-05,2]
[398609978,1765865367364,-150.0,9.69e-05,2]
[398609979,1765865367383,-150.0,9.69e-05,2]
[398609980,1765865367402,-150.0,9.69e-05,2]
[398609981,1765865367422,-343.49875733,9.708e-05,2]
[398609982,1765865367443,-533.47387592,9.708e-05,2]
[398609983,1765865368071,-739.6452,9.708e-05,2]
[398609984,1765865389750,292.52,8.14e-05,2]
[398609985,1765865390159,585.03,8.88e-05,2]
[398610044,1765865432681,-1085.0,9.61e-05,2]
[398610046,1765865432691,-4715.47254541,9.611e-05,2]
[398610048,1765865432701,-555.0,9.611e-05,2]
[398610050,1765865432710,-877.55,9.62e-05,2]
[398610052,1765865432720,-2773.56790519,9.646e-05,2]
[398610054,1765865432729,-99.50195836,9.708e-05,2]
[398610056,1765865432738,-300.0,9.826e-05,2]
[398610058,1765865432747,-300.0,9.826e-05,2]
[398610060,1765865432756,-300.0,9.826e-05,2]
[398610062,1765865432765,-300.0,9.826e-05,2]
[398610064,1765865432773,-150.0,9.827e-05,2]
[398610066,1765865432782,-150.0,9.827e-05,2]
[398610068,1765865432792,-150.0,9.827e-05,2]
[398610070,1765865432801,-150.0,9.827e-05,2]
[398610072,1765865432810,-150.24380091,9.827e-05,2]
[398610074,1765865432819,-150.0,9.827e-05,2]
[398610076,1765865432828,-198.0,9.827e-05,2]
[398610078,1765865432837,-150.0,9.827e-05,2]
[398610080,1765865432846,-150.0,9.827e-05,2]
[398610082,1765865432855,-150.0,9.827e-05,2]
[398610084,1765865432865,-150.0,9.827e-05,2]
[398610086,1765865432875,-150.0,9.827e-05,2]
[398610088,1765865432884,-150.0,9.827e-05,2]
[398610090,1765865432894,-162.86477131,9.851e-05,2]
[398610092,1765865432903,-651.45908524,9.851e-05,2]
[398610094,1765865432912,-1465.78294179,9.851e-05,2]
[398610096,1765865432921,-243.31895503,9.852e-05,2]
[398610098,1765865432931,-437.97411905,9.852e-05,2]
[398610100,1765865432940,-2454.59059438,9.932e-05,2]
[398610102,1765865432949,-385.525,9.951e-05,2]
[398610104,1765865432958,-3739.48582071,9.955e-05,2]
[398610105,1765865432967,-150.0,9.964e-05,2]
[398610108,1765865432976,-200.0,9.964e-05,2]
[398610109,1765865432986,-150.0,9.964e-05,2]
[398610111,1765865432995,-150.0,9.964e-05,2]
[398610113,1765865433005,-150.0,9.964e-05,2]
[398610115,1765865433014,-150.0,9.964e-05,2]
[398610117,1765865433023,-150.0,9.964e-05,2]
[398610119,1765865433032,-150.0,9.964e-05,2]
[398610121,1765865433042,-150.0,9.964e-05,2]